Cogmind - Beta 16.1 @@@ ROGUE MODE // 2026.02.12 @ 15:48:15 Player: Wyvern Result: Destroyed by as-85408 with Assembled Heavy Rifle Performance ------------- Evolutions (0) 0 Regions Visited (2) 400 Robots Destroyed (7) 35 Value Destroyed (186) 186 Prototype IDs (5) 100 Alien Tech Used (0) 0 Bonus (0) 0 TOTAL SCORE: 721 Bonus ------- None Cogmind --------- Core Integrity 0/250 Matter 0/300 Energy 100/100 System Corruption 11% Temperature Cool (0) Movement Core (200) Ox3 Location -10/Mines Parts ------- > --- POWER (1) -------- (None) > --- PROPULSION (2) --- (None) > --- UTILITY (2) ------ Small Storage Unit > --- WEAPON (2) ------- Autogun Autogun > --- INVENTORY (8) ---- Ion Engine Aluminum Leg Heat Sink Medium Matter Pod (0) ECM Suite Mini Grenade Launcher Peak State ------------ > --- POWER ------------ Light Ion Engine > --- PROPULSION ------- Aluminum Leg Aluminum Leg > --- UTILITY ---------- Small Storage Unit ECM Suite > --- WEAPON ----------- Autogun Autogun > --- INVENTORY -------- Ion Engine Aluminum Leg Autogun Autogun Mini Grenade Launcher Mini Grenade Launcher [Rating: 10] Favorites ----------- Power Light Ion Engine Engine Light Ion Engine Propulsion Aluminum Leg Leg Aluminum Leg Utility Small Storage Unit Device ECM Suite Storage Small Storage Unit Weapon Autogun Ballistic Gun Autogun Launcher Mini Grenade Launcher Build | -11 -10 -10 ------- Run | Yrd Mat Min Slots Evolved . | . . . Power . | . . . Propulsion . | . . . Utility . | . . . Weapon . | . . . Parts Attached 12 | 6 5 1 Power 1 | 1 . . Engine 1 | 1 . . Core . | . . . Reactor . | . . . Propulsion 2 | 2 . . Treads . | . . . Leg 2 | 2 . . Wheel . | . . . Hover . | . . . Flight . | . . . Utility 2 | 1 1 . Device 1 | . 1 . Storage 1 | 1 . . Processor . | . . . Hackware . | . . . Protection . | . . . Artifact . | . . . Weapon 7 | 2 4 1 Energy Gun . | . . . Energy Cannon . | . . . Ballistic Gun 5 | 2 2 1 Ballistic Cannon . | . . . Launcher 2 | . 2 . Special Weapon . | . . . Impact Weapon . | . . . Slashing Weapon . | . . . Piercing Weapon . | . . . Special Melee Weapon . | . . . Unidentified Prototypes . | . . . Parts Lost 6 | . . 6 Power 1 | . . 1 Propulsion 2 | . . 2 Utility 1 | . . 1 Weapon 2 | . . 2 Highest Loss Streak 6 | . . 6 To Critical Strikes . | . . . Average Backups 5 | 1 5 7 Power . | . 1 1 Propulsion . | . . 1 Utility 1 | . . 3 Weapon 2 | . 3 2 Tool/Special . | . . . Unused Backups 6 | . 2 4 Power 1 | . . 1 Propulsion 1 | . . 1 Utility 2 | . . 2 Weapon 2 | . 2 . Tool/Special . | . . . Average Slot Usage (%) 89 | . 92 81 Engine 12 | . 14 9 Leg 26 | . 28 21 Device 7 | . 7 9 Storage 14 | . 14 14 Ballistic Gun 23 | . 25 18 Launcher 3 | . 2 7 Peak Build Rating 10 | 6 10 10 Average Rating 8 | 3 8 8 On Entrance 5 | . 6 10 Avg Prop Armor Cover (%) 9 | . . 9 Naked Turns . | . . . Heaviest Build 16 | 12 16 16 Greatest Support 20 | 20 20 20 Greatest Overweight (x) 1 | . . 1 Average Overweight (x) . | . . . Largest Inventory Capacity 8 | 8 8 8 Average Capacity 7 | 7 8 8 Most Carried 8 | 3 8 8 Average Carried 5 | 1 5 7 Final Capacity 8 | 8 8 8 Final Carried 8 | 1 8 6 Class Distribution -------------------- 100% | Mutant Dominant Class ---------------- Mutant | -10/Materials Mutant | -10/Mines Resources | -11 -10 -10 ----------- Run | Yrd Mat Min Matter Collected 218 | 188 . 30 Remotely . | . . . Salvage Created 82 | . 54 28 Parts 7 | . 7 . Haulers Intercepted . | . . . Recyclers Shooed 1 | . 1 . Parts Field Recycled . | . . . Retrieved Matter . | . . . Parts Self-Destructed . | . . . Prevented . | . . . Parts Restored . | . . . Kills | -11 -10 -10 ------- Run | Yrd Mat Min Combat Hostiles Destroyed 8 | . 4 4 AOE 8 | . 4 4 Classes Destroyed 4 | . 3 1 Builder 1 | . 1 . Watcher 2 | . 2 . Grunt 4 | . 4 . Assembled 4 | . . 4 Best Kill Streak 6 | . 6 4 Combat Bots Only 4 | . 4 4 Max Kills in Single Turn 4 | . 4 3 Gunslinging . | . . . Exploded 3 | . 2 3 Melee . | . . . Uniques/NPCs Destroyed . | . . . Combat | -11 -10 -10 -------- Run | Yrd Mat Min Hostile Shots Fired 80 | . 13 67 Missed 27 | . 6 21 Hits 53 | . 7 46 Melee 13 | . . 13 Projectile 40 | . 7 33 Critical Strikes 2 | . 1 1 Part Disruptions 2 | . . 2 Damage Taken 859 | . 118 741 Core 254 | . 16 238 Absorbed by Shields . | . . . Core Remaining (%) 100 | 100 . . Volleys Fired 19 | . 10 9 Largest 2 | . 2 2 Hottest 60 | . 60 46 Shots Fired 31 | . 20 11 Gun 21 | . 12 9 Cannon . | . . . Launcher 10 | . 8 2 Special . | . . . Kinetic 21 | . 12 9 Thermal . | . . . Explosive 10 | . 8 2 Electromagnetic . | . . . Robot Hit Streak 4 | . 4 3 Robot Miss Streak 3 | . 3 2 Penetration Max . | . . . Secondary Targets . | . . . Shots Hit Robots 14 | . 8 6 Core Hits 23 | . 14 9 Critical Kills . | . . . Critical Parts Destroyed . | . . . Critical Strikes . | . . . Melee Attacks . | . . . Impact . | . . . Slashing . | . . . Piercing . | . . . Sneak Attacks . | . . . Combat Hostiles . | . . . Follow-up Attacks . | . . . Damage Inflicted 1082 | . 777 305 Guns 156 | . 79 77 Cannons . | . . . Explosions 922 | . 694 228 Melee . | . . . Ramming 4 | . 4 . Kinetic 156 | . 79 77 Thermal . | . . . Explosive 922 | . 694 228 Electromagnetic . | . . . Impact . | . . . Slashing . | . . . Piercing . | . . . Highest Corruption 11 | . . 11 Average Corruption 9 | . . 9 Corruption Purged . | . . . Corruption Blocked . | . . . Effects 2 | . . 2 Matter Fused 1 | . . 1 Heat Flow Errors 1 | . . 1 Overload Shots . | . . . Overflow Damage 19 | . 19 . Projectiles . | . . . Explosions 19 | . 19 . Melee . | . . . Knockbacks . | . . . Impact . | . . . Kinetic . | . . . Secondary . | . . . Self-Inflicted Damage . | . . . Shots . | . . . Rammed . | . . . Targets Rammed 1 | . 1 . Kicked 1 | . 1 . Crushed . | . . . Highest Temperature 273 | . 18 273 Average Temperature 63 | . 7 103 Received Heat Transfer 506 | . 66 440 Siege Activations . | . . . Martial Activations . | . . . Shielding Activations . | . . . Robots Disrupted . | . . . Combat Hostiles . | . . . Robots Corrupted . | . . . Combat Hostiles . | . . . Parts Fried . | . . . Impact Corruptions . | . . . Robots Melted . | . . . Combat Hostiles . | . . . Parts Melted . | . . . Heat Transferred . | . . . Parts Sabotaged . | . . . Parts Stolen . | . . . Parts Stripped . | . . . Power Chain Reactions . | . . . Alert | -11 -10 -10 ------- Run | Yrd Mat Min Maximum Alert Level . | . . . Low Security (%) 100 | 100 100 100 Level 1 . | . . . Level 2 . | . . . Level 3 . | . . . Level 4 . | . . . Level 5 . | . . . High Security . | . . . Max Security . | . . . Peak Influence 134 | . 134 37 Initial 37 | . . 37 Average 27 | . 35 17 Influence Increases 180 | . 166 14 Destroy 0b10 Robot/C 80 | . 80 . Destroy 0b10 Robot/NC 15 | . 15 . Destroy Leader 24 | . 24 . Successful Hack 15 | . 15 . Destroy Structure 46 | . 32 14 Influence Decreases 180 | . 70 110 Entered New Map 59 | . . 59 Time Decay 110 | . 70 40 Lost Part 11 | . . 11 Squads Dispatched 1 | . 1 . Investigation . | . . . Extermination . | . . . Reinforcement 1 | . 1 . Assault . | . . . Garrison . | . . . Intercept . | . . . Searches Triggered . | . . . Construction Impeded . | . . . Haulers Reinforced . | . . . Active Scanning Responses . | . . . Cargo Convoy Interrupts . | . . . Stealth | -11 -10 -10 --------- Run | Yrd Mat Min Distress Signals 2 | . 2 . Communications Jammed . | . . . Distress Signals . | . . . Times Spotted 33 | . 11 22 Peak Tracking Total 19 | . 6 19 Tactical Retreats 4 | . 1 3 ECM-based Alert Blocks 2 | . 2 . Traps | -11 -10 -10 ------- Run | Yrd Mat Min Traps Triggered 1 | . 1 . Indirectly . | . . . Trap Hack Attempts . | . . . Triggered . | . . . Disarmed . | . . . Reprogrammed . | . . . Reused . | . . . Traps Extracted . | . . . Installed . | . . . Triggered . | . . . Machines | -11 -10 -10 ---------- Run | Yrd Mat Min Machines Disabled . | . . . Max in Single Turn . | . . . Machines Repaired . | . . . Machines Dismantled . | . . . Machines Sabotaged . | . . . Overloaded Fab Kills . | . . . Hacking | -11 -10 -10 --------- Run | Yrd Mat Min Machines Accessed 6 | . 6 . Terminals 4 | . 4 . Fabricators . | . . . Repair Stations . | . . . Recycling Units 2 | . 2 . Scanalyzers . | . . . Garrison Access . | . . . Total Hacks 24 | . 24 . Successful 12 | . 12 . Failed 12 | . 12 . Catastrophic 1 | . 1 . Database Lockouts . | . . . Manual . | . . . Terminals 17 | . 17 . Fabricators . | . . . Repair Stations . | . . . Recycling Units 7 | . 7 . Scanalyzers . | . . . Garrison Access . | . . . Terminal Hacks 8 | . 8 . Prototype ID Bank 3 | . 3 . Branch Access Points 1 | . 1 . Emergency Access Points 1 | . 1 . Maintenance Status 1 | . 1 . Hauler Manifests 1 | . 1 . Zone Layout 1 | . 1 . Fabricator Hacks . | . . . Repair Station Hacks . | . . . Recycling Unit Hacks 4 | . 4 . Report Inventory 2 | . 2 . Retrieve Matter 2 | . 2 . Scanalyzer . | . . . Garrison Access Hacks . | . . . Unauthorized Hacks . | . . . Terminals . | . . . Fabricators . | . . . Repair Stations . | . . . Recycling Units . | . . . Scanalyzers . | . . . Garrison Access . | . . . Data Cores Recovered . | . . . Used . | . . . Hacking Detections 6 | . 6 . Full Trace Events 1 | . 1 . Feedback Events . | . . . Feedback Blocked . | . . . Robot Schematics Acquired . | . . . Robots Built . | . . . Authchips . | . . . Time . | . . . Total Robot Build Rating . | . . . Part Schematics Acquired . | . . . Parts Built . | . . . Authchips . | . . . Time . | . . . Total Part Build Rating . | . . . Part Studies Acquired . | . . . Parts Repaired . | . . . Time . | . . . Parts Recycled . | . . . Recycled Matter . | . . . Retrieved Matter . | . . . Retrieved Components . | . . . Parts Scanalyzed . | . . . Part Schematics Acquired . | . . . Parts Damaged . | . . . Bothacking | -11 -10 -10 ------------ Run | Yrd Mat Min Used RIF Installer . | . . . Robots Hacked . | . . . Non-combat . | . . . Combat . | . . . Robot Hacks Applied . | . . . Relay Couplers Released . | . . . Fabnet Peak Effective % . | . . . Robots Rewired . | . . . Allies Hacked . | . . . Hacks Repelled . | . . . Allies | -11 -10 -10 -------- Run | Yrd Mat Min Total Allies . | . . . Largest Group . | . . . Highest-Rated Group . | . . . Highest-Rated Ally . | . . . Total Orders . | . . . Ally Attacks . | . . . Total Damage . | . . . Kills . | . . . Allies Corrupted . | . . . Allies Melted . | . . . Intel | -11 -10 -10 ------- Run | Yrd Mat Min Active Infowar (turns) 297 | . 198 99 ECM 297 | . 198 99 Robot Analysis Total . | . . . Derelict Logs Recovered . | . . . Drone Launches . | . . . Drone Recoveries . | . . . Exploration | -11 -10 -10 ------------- Run | Yrd Mat Min Turns Passed 570 | 52 377 141 Spaces Moved 387 | 35 271 81 Core 6 | 3 . 3 Treads . | . . . Legs 381 | 32 271 78 Wheels . | . . . Hover . | . . . Flight . | . . . Fastest Speed 50 | 50 120 100 Average Speed 121 | 114 120 127 Slowest Speed 190 | 120 120 190 Overloaded Moves . | . . . Propulsion Burnouts . | . . . Robots Hopped . | . . . Potential Cave-ins . | . . . Cave-ins Triggered . | . . . Exploration Rate (%) 21 | 3 42 19 Regions Visited 2 Branch Regions 1 Pre-discovered Areas . | . . . Known Exits Taken 1 | . 1 . Unknown Exits Taken 1 | 1 . . Scrap Searched . | . . . Spaces Dug . | . . . Terrain Destroyed 88 | . 61 27 Melee . | . . . Projectile . | . . . AOE 88 | . 61 27 Terrain Rammed . | . . . Walls Destroyed . | . . . Machines Disabled . | . . . Actions | -11 -10 -10 --------- Run | Yrd Mat Min Total 459 | 47 304 108 Wait 15 | . . 15 Move 385 | 34 270 81 Hop . | . . . Pick Up 19 | 7 12 . Fast Attach . | . . . Attach 9 | 6 1 2 Detach . | . . . Swap 7 | . 6 1 Drop 4 | . 4 . Fire 19 | . 10 9 Melee . | . . . Ram . | . . . Kick 1 | . 1 . Crush . | . . . Escape Stasis . | . . . Rewire . | . . . Trap . | . . . Miscellaneous . | . . . Route ------- -11/Scrapyard -10/Materials (discovered 3 exits: [*Mat] / *Min x2) -10/Mines History --------- Turn | Location | Event 7 | -11/Scrapyard | Discovered new exit (range 15) 53 | -11/Scrapyard | Entered Materials 259 | -10/Materials | Identified exit to Mines 320 | -10/Materials | Build established: Mutant 380 | -10/Materials | Discovered new exit (range 4) 430 | -10/Materials | Entered Mines 440 | -10/Mines | Assembled infested the area 452 | -10/Mines | Met a Derelict bent on vengeance 542 | -10/Mines | System corruption reached 10% 548 | -10/Mines | Core integrity fell below 50% 568 | -10/Mines | Core integrity fell below 20% 571 | -10/Mines | Destroyed by as-85408 with Assembled Heavy Rifle Last Messages --------------- Acquired 12 matter. Autogun destroyed. System corrupted by crushing effect (+3). [Achievement: System Compromised] Acquired 3 matter. Critical hit (Burn: +80). Aluminum Leg destroyed. Acquired 4 matter. Acquired 11 matter. as-64694 sneak attacks. U-05 Engineer system corrupted by crushing effect. U-05 Engineer system terminally corrupted. as-70359 destroyed. Knocked back. System corrupted: Matter fused (-6). U-05 Engineer lays Concrete. Knocked back. The unstable cave ceiling collapses. as-74989 destroyed. Map ----- +----------------------------------------------------+ | ?????????????????????????????????????????????????? | | ?????????????????????????????????????????????????? | | ?????????????????????????????????????????????????? | | ?????????????????????????????????????????????????? | | ?????????????????????????????????????????????????? | | ?????????????????????????????????????????????????? | | ?????????????????????????????????????????????????? | | ?????????????????????????????????????????????????? | | ?????????????????????????????????????????????????? | | ?????????????????????????????????????????????????? | | ?????????????????????????????????????????????????? | | ?????????????????????????????????????????????????? | | ?????????????????????????????????????????????????? | | ?????????????????????????????????????????????????? | | ?????????????????????????????????????????????????? | | ????????????????????????#????????????????????????? | | ???????????????###??????# ???????????????????????? | | ??????????????## ##????# #####??????????????????? | | ??????????????# #???? #??????????????????? | | ??????????????? ##??? #??????????????????? | | ????????????????? ????# #??????????????????? | | ??????????????????# ???# #################### | | ???????????????????# ???# % | | ???????????????????# < ?## % | | ???????????????????# ## %a ############## | | ???????????????????# @a # ##???????????# | | ???????????????????## ### #??????????## | | ????????????????????##???# # ##?????????## | | ?????????????????????????# # # #????????## """ | | ?????????????????????????## ##????????# """ | | ??????????????????????????### ###?????????# """ | | ????????????????????????????# #???????????# | | ????????????????????????????# #???????????## ### | | ????????????????????????????# #######??????## #?? | | ????????????????????????????# ##??????# #?? | | ????????????????????????????# #### ###????# #?? | | ????????????????????????????# #??## ##???# #?? | | ????????????????????????????# #???## ##### ##? | | ????????????????????????????# #????## #? | | ????????????????????????????# #?????## #? | | ???????????????????????????? #??????# #? | | ????????????????????????????###??????# ##? | | ?????????????????????????????????????# ##?? | | ????????????????????????????????????# #??? | | ??????????????????????????????????? #??? | | ?????????????????????????????????" ##??? | | ?????????????????????????????????" ##???? | | ????????????????????????????????"" ##????? | | ???????????????????????????????? #?????? | | ???????????????????????????????? ##?????? | +----------------------------------------------------+ Best States ------------- Heat Dissipation 25 Energy Generation 10 Energy Capacity 125 Matter Stores 228 Matter Capacity 300 Sight Range 16 Terrain Scan Density 10 ECM Strength 1 Evasion (%) 55 Item Schematics ----------------- None Robot Schematics ------------------ None Fabricated ------------ Nothing Repaired ---------- Nothing Studied --------- None Alien Tech Used ----------------- None Achievements -------------- Slippery One System Compromised Challenges ------------ None Game ------ Seed QuantumMobileDevice Manual? 0 Play Time 00:10:50 Cumulative 3.1 hours Start 2026.02.12 @ 15:39:37 End 2026.02.12 @ 15:48:15 Sessions 1 Manual Loads 0 Difficulty Rogue Special Mode None Game No. 6 Rogue 6 Adventurer 0 Explorer 0 Win Type - Total 0 Types 0/0/0/0/0/0/0/0/0/0 Lore% 1 Gallery% 6 Achievement% 6 Wizard Run 0 Options --------- Layout 1 ASCII 0 Keyboard 0 Movement Mouse Keybinds 0 Fullscreen 1 Font 32/SmallcapsGlow Map View 50x35 Zoom Use 0% Tactical HUD 0 Map Filters NONE Filters NONE Steam 0 RUN: ade3b24b-0556-4e83-bd5f-6e21389af706